Cogmind - Beta 17.1 @@@ ROGUE MODE // 2026.09.13 @ 10:49:09 Player: eph7ra Result: Destroyed by S-10 Pest with Light Assault Rifle Performance ------------- Evolutions (0) 0 Regions Visited (3) 600 Robots Destroyed (20) 100 Value Destroyed (385) 385 Prototype IDs (0) 0 Alien Tech Used (0) 0 Bonus (51) 51 TOTAL SCORE: 1136 Bonus ------- Follower Combat Kills 51 Cogmind --------- Core Integrity 0/250 Matter 266/300 Energy 169/170 System Corruption 2% Temperature Cool (0) Movement Core (250) Ox4 Location -10/Subcaves Parts ------- > --- POWER (1) -------- Makeshift Power Source > --- PROPULSION (2) --- (None) > --- UTILITY (2) ------ Medium Storage Unit > --- WEAPON (2) ------- Light Assault Rifle > --- INVENTORY (10) --- Light Ion Engine Light Ion Engine Wheel Flight Unit Flight Unit Small Storage Unit Visual Processing Unit Scrap Shield Fragment (45) Scrap Shield Fragment (35) Peak State ------------ > --- POWER ------------ Makeshift Power Source > --- PROPULSION ------- Aluminum Leg Makeshift Leg > --- UTILITY ---------- Medium Storage Unit > --- WEAPON ----------- Light Assault Rifle > --- INVENTORY -------- Light Ion Engine Light Ion Engine Aluminum Leg Aluminum Leg Wheel Flight Unit Flight Unit Flight Unit Small Storage Unit Visual Processing Unit [Rating: 12] Favorites ----------- Power Light Ion Engine Engine Light Ion Engine Power Core Light Nuclear Core Propulsion Aluminum Leg Leg Aluminum Leg Flight Unit Flight Unit Utility Medium Storage Unit Device Seismic Detector Storage Medium Storage Unit Protection Weapon Shielding Weapon Assault Rifle Energy Gun Medium Laser Ballistic Gun Assault Rifle Ballistic Cannon Battle Cannon Build | -11 -10 -10 -10 ------- Run | Yrd Mat Min Sub Slots Evolved . | . . . . Power . | . . . . Propulsion . | . . . . Utility . | . . . . Weapon . | . . . . Parts Attached 21 | 7 5 8 1 Power 3 | 1 1 1 . Engine 2 | 1 . 1 . Core 1 | . 1 . . Reactor . | . . . . Propulsion 9 | 2 1 6 . Treads . | . . . . Leg 5 | 2 1 2 . Wheel . | . . . . Hover . | . . . . Flight 4 | . . 4 . Utility 4 | 1 3 . . Device 1 | . 1 . . Storage 2 | 1 1 . . Processor . | . . . . Hackware . | . . . . Protection 1 | . 1 . . Artifact . | . . . . Weapon 5 | 3 . 1 1 Energy Gun 2 | 2 . . . Energy Cannon . | . . . . Ballistic Gun 2 | 1 . 1 . Ballistic Cannon 1 | . . . 1 Launcher . | . . . . Special Weapon . | . . . . Impact Weapon . | . . . . Slashing Weapon . | . . . . Piercing Weapon . | . . . . Special Melee Weapon . | . . . . Unidentified Prototypes . | . . . . Corrupted Parts 1 | . 1 . . System Corruption 2 | . 2 . . Parts Lost 10 | . 2 5 3 Power 1 | . . 1 . Propulsion 4 | . 1 1 2 Utility 1 | . . 1 . Weapon 4 | . 1 2 1 Highest Loss Streak 3 | . 1 3 3 To Critical Strikes 1 | . . . 1 Average Backups 7 | 3 6 9 7 Power 1 | . 1 2 2 Propulsion 3 | 1 3 5 3 Utility 1 | . 1 2 2 Weapon . | . . . . Tool/Special . | . . . . Unused Backups 10 | . 3 . 7 Power 1 | . . . 1 Propulsion 7 | . 2 . 5 Utility 2 | . 1 . 1 Weapon . | . . . . Tool/Special . | . . . . Average Slot Usage (%) 87 | . 95 77 79 Engine 10 | . 10 4 14 Core 3 | . 3 8 . Leg 16 | . 24 23 . Flight 9 | . . 4 26 Device 4 | . 6 6 . Storage 14 | . 14 14 14 Protection 3 | . 6 . . Energy Gun 8 | . 14 5 . Ballistic Gun 13 | . 14 9 14 Ballistic Cannon 3 | . . . 9 Peak Build Rating 12 | 6 9 12 11 Average Rating 8 | 4 7 8 10 On Entrance 6 | . 6 9 9 Avg Prop Armor Cover (%) 13 | . . 13 . Naked Turns . | . . . . Heaviest Build 20 | 12 20 20 18 Greatest Support 30 | 20 20 30 8 Greatest Overweight (x) 3 | 3 1 3 2 Average Overweight (x) . | . . . 1 Largest Inventory Capacity 10 | 8 10 10 10 Average Capacity 9 | 7 9 10 10 Most Carried 10 | 5 8 10 10 Average Carried 7 | 3 6 9 8 Final Capacity 10 | 8 10 10 10 Final Carried 9 | 5 8 9 9 Class Distribution -------------------- 67% | Mutant 32% | Scavenger-Mutant Dominant Class ---------------- Mutant | -10/Materials Mutant | -10/Mines Scavenger-Mutant | -10/Subcaves Resources | -11 -10 -10 -10 ----------- Run | Yrd Mat Min Sub Matter Collected 530 | 211 218 58 43 Remotely . | . . . . Salvage Created 444 | . 321 88 35 Parts 37 | . 31 3 3 Haulers Intercepted . | . . . . Recyclers Shooed 1 | . . 1 . Parts Field Recycled . | . . . . Retrieved Matter . | . . . . Parts Self-Destructed 3 | . . . 3 Prevented . | . . . . Parts Restored . | . . . . Kills | -11 -10 -10 -10 ------- Run | Yrd Mat Min Sub Combat Hostiles Destroyed 17 | . 12 2 3 Guns 14 | . 12 1 1 Cannons 2 | . . . 2 AOE 1 | . . 1 . Classes Destroyed 5 | . 4 . 1 Tunneler 1 | . 1 . . Watcher 2 | . 2 . . Swarmer 11 | . 9 . 2 Grunt 5 | . 3 2 . Subdweller 1 | . . . 1 Best Kill Streak 4 | . 4 2 2 Combat Bots Only 4 | . 4 2 2 Max Kills in Single Turn 2 | . 2 1 1 Gunslinging . | . . . . Exploded 1 | . . 1 . Melee . | . . . . Uniques/NPCs Destroyed . | . . . . Combat | -11 -10 -10 -10 -------- Run | Yrd Mat Min Sub Hostile Shots Fired 169 | . 73 67 29 Missed 54 | . 22 25 7 Hits 115 | . 51 42 22 Projectile 115 | . 51 42 22 AOE 4 | . . . 4 Critical Strikes 2 | . . 1 1 Damage Taken 1241 | . 494 410 337 Core 257 | . 132 58 67 Absorbed by Shields . | . . . . Redirected to Shielding 27 | . 27 . . Core Remaining (%) 100 | 100 . . . Volleys Fired 57 | . 35 7 15 Largest 2 | . 2 2 2 Hottest 70 | . 70 60 53 Shots Fired 97 | . 63 11 23 Gun 89 | . 63 11 15 Cannon 8 | . . . 8 Launcher . | . . . . Special . | . . . . Kinetic 62 | . 35 4 23 Thermal 23 | . 23 . . Explosive . | . . . . Electromagnetic 12 | . 5 7 . Robot Hit Streak 11 | . 10 11 5 Robot Miss Streak 6 | . 6 1 4 Penetration Max . | . . . . Secondary Targets 1 | . 1 . . Max Gunslinging Chain 1 | . 1 . . Shots Hit Robots 54 | . 31 9 14 Core Hits 30 | 2 17 6 5 Critical Kills . | . . . . Critical Parts Destroyed 1 | . . 1 . Critical Strikes 3 | . 1 1 1 Burn 1 | . 1 . . Destroy 1 | . . 1 . Blast 1 | . . . 1 Melee Attacks . | . . . . Impact . | . . . . Slashing . | . . . . Piercing . | . . . . Sneak Attacks . | . . . . Combat Hostiles . | . . . . Follow-up Attacks . | . . . . Damage Inflicted 873 | 13 440 227 193 Guns 611 | . 439 114 58 Cannons 135 | . . . 135 Explosions 102 | . . 102 . Melee . | . . . . Ramming 25 | 13 1 11 . Kinetic 475 | . 258 24 193 Thermal 214 | . 112 102 . Explosive . | . . . . Electromagnetic 159 | . 69 90 . Impact . | . . . . Slashing . | . . . . Piercing . | . . . . Highest Corruption 2 | . 2 2 2 Average Corruption 2 | . 2 2 2 Corruption Purged . | . . . . Corruption Blocked . | . . . . Effects 6 | . 2 2 2 Message Errors 1 | . 1 . . Matter Fused 2 | . . 1 1 Heat Flow Errors 1 | . . . 1 Data Loss (minor) 1 | . 1 . . Misfires 1 | . . 1 . Overload Shots . | . . . . Overflow Damage 5 | . . . 5 Projectiles 5 | . . . 5 Explosions . | . . . . Melee . | . . . . Knockbacks 3 | . . . 3 Impact . | . . . . Kinetic 3 | . . . 3 Secondary . | . . . . Self-Inflicted Damage 21 | . . 21 . Shots 1 | . . 1 . Rammed 1 | . . 1 . Targets Rammed 9 | 3 1 5 . Kicked 8 | 3 1 4 . Crushed . | . . . . Highest Temperature 142 | . 45 142 135 Average Temperature 30 | . 16 77 71 Received Heat Transfer 171 | . 66 105 . Siege Activations . | . . . . Martial Activations . | . . . . Shielding Activations . | . . . . Robots Disrupted . | . . . . Combat Hostiles . | . . . . Robots Corrupted . | . . . . Combat Hostiles . | . . . . Parts Fried 1 | . . 1 . Impact Corruptions . | . . . . Robots Melted . | . . . . Combat Hostiles . | . . . . Parts Melted . | . . . . Heat Transferred 507 | . 407 100 . Parts Sabotaged . | . . . . Parts Stolen . | . . . . Parts Stripped . | . . . . Power Chain Reactions 2 | . . 2 . Alert | -11 -10 -10 -10 ------- Run | Yrd Mat Min Sub Maximum Alert Level 1 | . 1 . . Low Security (%) 98 | 100 97 100 . Level 1 1 | . 2 . . Level 2 . | . . . . Level 3 . | . . . . Level 4 . | . . . . Level 5 . | . . . . High Security . | . . . . Max Security . | . . . . Peak Influence 204 | . 204 74 . Initial 27 | . . 27 . Average 78 | . 102 30 . Influence Increases 596 | . 365 181 50 Destroy 0b10 Robot/C 380 | . 240 100 40 Destroy 0b10 Robot/NC 15 | . 15 . . Destroy Leader 74 | . 44 20 10 Allied During Kill 4 | . . 4 . Successful Hack 19 | . 19 . . Destroy Structure 14 | . 2 12 . Lose Combat Pursuer 90 | . 45 45 . Influence Decreases 584 | . 294 218 72 Entered New Map 62 | . . 44 18 Time Decay 405 | . 274 107 24 Lost Part 97 | . 20 47 30 Lost Ally 20 | . . 20 . Squads Dispatched 1 | . 1 . . Investigation 1 | . 1 . . Extermination . | . . . . Reinforcement . | . . . . Assault . | . . . . Garrison . | . . . . Intercept . | . . . . Searches Triggered . | . . . . Construction Impeded . | . . . . Haulers Reinforced . | . . . . Active Scanning Responses . | . . . . Cargo Convoy Interrupts . | . . . . Stealth | -11 -10 -10 -10 --------- Run | Yrd Mat Min Sub Distress Signals 1 | . 1 . . Communications Jammed . | . . . . Distress Signals . | . . . . Times Spotted 34 | . 21 8 5 Peak Tracking Total 6 | . 6 3 3 Tactical Retreats 3 | . 1 2 . Traps | -11 -10 -10 -10 ------- Run | Yrd Mat Min Sub Traps Triggered 2 | . 2 . . Indirectly . | . . . . Trap Hack Attempts . | . . . . Triggered . | . . . . Disarmed . | . . . . Reprogrammed . | . . . . Reused . | . . . . Traps Extracted . | . . . . Installed . | . . . . Triggered . | . . . . Machines | -11 -10 -10 -10 ---------- Run | Yrd Mat Min Sub Machines Disabled . | . . . . Max in Single Turn . | . . . . Machines Repaired . | . . . . Machines Dismantled . | . . . . Machines Sabotaged . | . . . . Overloaded Fab Kills . | . . . . Hacking | -11 -10 -10 -10 --------- Run | Yrd Mat Min Sub Machines Accessed 6 | . 6 . . Terminals 6 | . 6 . . Fabricators . | . . . . Repair Stations . | . . . . Recycling Units . | . . . . Scanalyzers . | . . . . Garrison Access . | . . . . Total Hacks 16 | . 16 . . Successful 10 | . 10 . . Failed 6 | . 6 . . Catastrophic . | . . . . Database Lockouts . | . . . . Manual 16 | . 16 . . Terminals 16 | . 16 . . Fabricators . | . . . . Repair Stations . | . . . . Recycling Units . | . . . . Scanalyzers . | . . . . Garrison Access . | . . . . Terminal Hacks . | . . . . Fabricator Hacks . | . . . . Repair Station Hacks . | . . . . Recycling Unit Hacks . | . . . . Scanalyzer . | . . . . Garrison Access Hacks . | . . . . Unauthorized Hacks 10 | . 10 . . Terminals 10 | . 10 . . Botnet 5 | . 5 . . Skim 5 | . 5 . . Fabricators . | . . . . Repair Stations . | . . . . Recycling Units . | . . . . Scanalyzers . | . . . . Garrison Access . | . . . . Data Cores Recovered . | . . . . Used . | . . . . Hacking Detections 5 | . 5 . . Full Trace Events 1 | . 1 . . Feedback Events . | . . . . Feedback Blocked . | . . . . Robot Schematics Acquired . | . . . . Robots Built . | . . . . Authchips . | . . . . Time . | . . . . Total Robot Build Rating . | . . . . Part Schematics Acquired . | . . . . Parts Built . | . . . . Authchips . | . . . . Time . | . . . . Total Part Build Rating . | . . . . Part Studies Acquired . | . . . . Parts Repaired . | . . . . Time . | . . . . Parts Recycled . | . . . . Recycled Matter . | . . . . Retrieved Matter . | . . . . Retrieved Components . | . . . . Parts Scanalyzed . | . . . . Part Schematics Acquired . | . . . . Parts Damaged . | . . . . Bothacking | -11 -10 -10 -10 ------------ Run | Yrd Mat Min Sub Used RIF Installer . | . . . . Robots Hacked . | . . . . Non-combat . | . . . . Combat . | . . . . Robot Hacks Applied . | . . . . Relay Couplers Released . | . . . . Fabnet Peak Effective % . | . . . . Robots Rewired . | . . . . Allies Hacked . | . . . . Hacks Repelled . | . . . . Allies | -11 -10 -10 -10 -------- Run | Yrd Mat Min Sub Total Allies 2 | . . 2 . Largest Group 2 | . . 2 1 Highest-Rated Group 46 | . . 46 31 Highest-Rated Ally 31 | . . 31 31 Total Orders . | . . . . Ally Attacks 11 | . . 5 6 Total Damage 166 | . . 61 105 Kills 4 | . . 3 1 Allies Corrupted . | . . . . Allies Melted . | . . . . Intel | -11 -10 -10 -10 ------- Run | Yrd Mat Min Sub Active Infowar (turns) 531 | . 432 99 . Seismic 531 | . 432 99 . Robot Analysis Total . | . . . . Derelict Logs Recovered . | . . . . Drone Launches . | . . . . Drone Recoveries . | . . . . Exploration | -11 -10 -10 -10 ------------- Run | Yrd Mat Min Sub Turns Passed 1735 | 134 868 230 503 Spaces Moved 1090 | 104 568 135 283 Core 42 | 42 . . . Treads . | . . . . Legs 736 | 62 568 106 . Wheels . | . . . . Hover . | . . . . Flight 312 | . . 29 283 Fastest Speed 50 | 50 120 117 117 Average Speed 137 | 111 129 134 163 Slowest Speed 290 | 200 190 290 197 Overloaded Moves . | . . . . Propulsion Burnouts . | . . . . Robots Hopped . | . . . . Potential Cave-ins . | . . . . Cave-ins Triggered . | . . . . Exploration Rate (%) 33 | 4 79 37 15 Regions Visited 3 Branch Regions 2 Pre-discovered Areas . | . . . . Known Exits Taken . | . . . . Unknown Exits Taken 3 | 1 1 1 . Scrap Searched 3 | . . . 3 Spaces Dug . | . . . . Terrain Destroyed 15 | . . 15 . Melee . | . . . . Projectile . | . . . . AOE 15 | . . 15 . Terrain Rammed . | . . . . Walls Destroyed . | . . . . Machines Disabled . | . . . . Actions | -11 -10 -10 -10 --------- Run | Yrd Mat Min Sub Total 1228 | 118 634 169 307 Wait 24 | . 13 11 . Move 1088 | 104 567 134 283 Hop . | . . . . Pick Up 15 | 5 5 1 4 Fast Attach 14 | 6 4 3 1 Attach 3 | . 2 1 . Detach 1 | . 1 . . Swap 7 | 1 2 4 . Drop 11 | . 4 3 4 Fire 57 | . 35 7 15 Melee . | . . . . Ram 1 | . . 1 . Kick 7 | 2 1 4 . Crush . | . . . . Escape Stasis . | . . . . Rewire . | . . . . Trap . | . . . . Miscellaneous . | . . . . Route ------- -11/Scrapyard -10/Materials (discovered 4 exits: [*Mat x3] / [*Min]) -10/Mines -10/Subcaves (discovered 1 exit: [*Scr]) History --------- Turn | Location | Event 6 | -11/Scrapyard | Discovered new exit (range 15) 135 | -11/Scrapyard | Entered Materials 318 | -10/Materials | Build established: Mutant 324 | -10/Materials | Discovered new exit (range 11) 632 | -10/Materials | Discovered new exit (range 4) 770 | -10/Materials | Core integrity fell below 50% 878 | -10/Materials | Discovered new exit (range 7) 918 | -10/Materials | Discovered new exit (range 15) 1003 | -10/Materials | Entered Mines 1133 | -10/Mines | Lost 3 parts (1u2w) 1225 | -10/Mines | Discovered new exit (range 7) 1233 | -10/Mines | Entered Subcaves 1233 | -10/Subcaves | Accompanied by 1 ally 1234 | -10/Subcaves | Approached by a straggling Scientist 1238 | -10/Subcaves | Led the pair of lost Derelicts to an unsafe place 1260 | -10/Subcaves | Shifting Twisted Machinery released Sub. Beam Cannon 1271 | -10/Subcaves | Shifting Twisted Machinery released Flamer 1341 | -10/Subcaves | Scientist uncovered a shortcut to Scraptown 1363 | -10/Subcaves | Core integrity fell below 20% 1465 | -10/Subcaves | Build established: Scavenger-Mutant 1736 | -10/Subcaves | Destroyed by S-10 Pest with Light Assault Rifle Last Messages --------------- 01438_ System corrupted: Heat flow error (+168). 01441_ Subatomizers dissect the Aluminum Leg. 01441_ Acquired Scrap Shield Fragment. 01456_ Subatomizers dissect the Aluminum Leg. 01511_ Subatomizers dissect the Carbon-fiber Leg. 01624_ System corrupted: Matter fused (-6). 01711_ Destroyed Flight Unit. 01711_ S-10 Pest knocked back. 01714_ S-10 Pest destroyed. 01714_ Flight Unit destroyed. 01717_ S-10 Pest knocked back. 01719_ S-10 Pest Flight Unit blasted off. 01719_ S-10 Pest destroyed. 01721_ Lgt. Ion Engine fries itself beyond repair. 01721_ Subatomizers dissect the Flight Unit, destroying it. 01722_ S-10 Pest knocked back. 01723_ Critical hit (Destroy). 01723_ Battle Cannon destroyed. 01724_ Flight Unit fries itself beyond repair. 01725_ Lgt. Assault Rifle fries itself beyond repair. Map ----- +----------------------------------------------------+ | ?????????????????????????????????????????????????? | | ???????????????????????????????????????#####?###?? | | ??????????????????????????????????????## ## ##? | | ?????????????????????????????????????## ## | | ?????????????????????????????????????# # | | ?????????????????????????????????????# | | ??????????????????????????????????????# #??? | | ??????????????????????????????????????## ## ##??? | | ???????????????????????????? ????????## ##?????? | | ???????????????????????????? ???##??# ##????? | | ????????????????????????????# ?# ??# ##???? | | ???????????????? ????????## ?# ??# ##??? | | ???????????????? ???????## ## ??# #### | | ????????????????? ?####?# ??## # | | ?????????????????# ## ## #???#### | | ?????????????????? ## #??## ## | | ??????????????????# #?# ##?# ### # | | ?????????????????## ##???# ### ##?#### | | ?????????????????# %#?????# #?????# | | ?????????????????# #?????# #####??# | | ?????????????????? s #????## ### #??# | | ??????????????????# % #????# ##?? | | ????????????????????? ##??## #?? | | ????????????????????????#% #### #?? | | ????????????????????????#% % #### ##?? | | ????????????????????????#@ ##??# #?? | | ????????????????????????# ## ##???# ### | | ????????????????????????# ## ##########????# # | | ????????????????????????#######????????????## | | ???????????????????????????????????????????# | | ???????????????????????????????????????????### ## | | ????????????????????????????????????????????## " # | | ?????????????????????????????????????????#### """ | | ?????????????????????????????????????????# "" | | ?????????????????????????????????????????# ]"""""" | | ?????????????????????????????????????????# """###" | | ?????????????????????????????????????????## ""#??" | | ??????????????????????????????????????????# ""#??? | | ?????????????????????????????????????????## ""##?? | | ?????????????????????????????????????????# " #?? | | ?????????????????????????????????????????### ##?? | | ??????????????????????????????????????????## #??? | | ??????????????????????????????????????????# "##??? | | ????????????????????????????????????????### ###??? | | ????????????????????????????????????????# #??? | | ????????????????????????????????????????## ####??? | | ?????????????????????????????????????????# ##????? | | ?????????????????????????????????????????# #????? | | ???????????????????????????????????????### ##????? | | ???????????????????????????????????????# ##????? | +----------------------------------------------------+ Best States ------------- Heat Dissipation 25 Energy Generation 15 Energy Capacity 170 Matter Stores 300 Matter Capacity 300 Sight Range 16 Terrain Scan Density 10 Weapon Shielding 33 Evasion (%) 55 Item Schematics ----------------- None Robot Schematics ------------------ None Fabricated ------------ Nothing Repaired ---------- Nothing Studied --------- None Alien Tech Used ----------------- None Achievements -------------- Nice Directions, Buddy Challenges ------------ None Game ------ Seed BackupArcScrapsphere Manual? 0 Play Time 00:24:34 Cumulative 35.0 hours Start 2026.09.12 @ 11:15:43 End 2026.09.13 @ 10:49:09 Sessions 4 Manual Loads 0 Difficulty Rogue Special Mode None Game No. 54 Rogue 49 Adventurer 1 Explorer 4 Win Type - Total 1 Types 1/0/0/0/0/0/0/0/0/0 Lore% 12 Gallery% 26 Achievement% 23 Wizard Run 0 Options --------- Layout 0 ASCII 0 Keyboard 0 Movement Arrows Keybinds 0 Fullscreen 1 Font 18/SmallcapsGlow Map View 76x50 Zoom Use 0% Tactical HUD 1 Map Filters NONE Filters NONE Steam 1 RUN: 10b7a0e2-0d04-4505-8e90-726e578091f9